{"text_format":"3","workbook":"xlsx","n_sheets":26,"sheets":["Έναρξη","1","2","3","4","5","6","7","8","9","10","11","12","13","14","15","16","17","18","19","20","21","22","23","24","Μάθετε περισσότερα"],"not_rendered":{"images":24,"defined_names":5,"pivot_tables":19},"read":"whole","date_system":"1900"}

{"sheet":"Έναρξη","index":0,"n_rows":5,"n_cols":1,"rows_kept":5}
["Καλωσορίσατε\nΟδηγίες για προγράμματα ανάγνωσης οθόνης: Αξιοποιήστε περισσότερο τους Συγκεντρωτικούς Πίνακες. Ένας απλός Συγκεντρωτικός Πίνακας σάς δίνει μια γενική περίληψη των δεδομένων σας, αλλά ορισμένες φορές χρειάζεστε λεπτομερείς απαντήσεις σε συγκεκριμένες ερωτήσεις. Σε αυτό το επίπεδο μπορεί να βοηθήσει η προσθήκη περισσότερων πεδίων στηλών και πεδίων γραμμών. \nΟι οδηγίες υποδεικνύουν σε ποια κελιά πρέπει να μεταβείτε για να χρησιμοποιήσετε μια δυνατότητα ή για να διαβάσετε περισσότερα.\nΓια να ξεκινήσετε, πατήστε τον συνδυασμό πλήκτρων CTRL+PAGE DOWN."]
["Αξιοποιήστε περισσότερο τους \nΣυγκεντρωτικούς Πίνακες"]
["Ένας απλός Συγκεντρωτικός Πίνακας σάς δίνει μια γενική περίληψη των δεδομένων σας,\nαλλά ορισμένες φορές χρειάζεστε λεπτομερείς απαντήσεις σε συγκεκριμένες ερωτήσεις.\nΣε αυτό το επίπεδο μπορεί να βοηθήσει η προσθήκη περισσότερων πεδίων στηλών και πεδίων γραμμών."]
["ΚΑΛΟ ΕΙΝΑΙ ΝΑ ΓΝΩΡΙΖΕΤΕ\nΠαρακολουθήσατε το πρώτο πρόγραμμα εκμάθησης; Εάν όχι, επιλέξτε \"Αρχείο\" > \"Δημιουργία\", και βρείτε την επιλογή \"Δημιουργήστε τον πρώτο σας Συγκεντρωτικό Πίνακα\"."]
["Για να επιστρέψετε στην αρχή, πατήστε το συνδυασμό πλήκτρων CTRL+HOME. Για να ξεκινήσετε την περιήγηση, πατήστε τον συνδυασμό πλήκτρων CTRL+PAGE DOWN."]

{"sheet":"1","index":1,"n_rows":16,"n_cols":9,"rows_kept":16}
["Στο πρώτο πρόγραμμα εκμάθησης, σας παρουσιάσαμε την έννοια του Συγκεντρωτικού Πίνακα. Επίσης εξηγείται πώς ένα πεδίο γραμμών μπορεί να χρησιμοποιηθεί ως μια συνθήκη η οποία αναλύει ένα πεδίο τιμών.   "]
["Τα κελιά H10 έως I14 περιέχουν έναν Συγκεντρωτικό Πίνακα που συνοψίζει τα δεδομένα στα κελιά B8 με E16. Ο Συγκεντρωτικός Πίνακας έχει δύο στήλες: \"Αγοραστής\" και \"Άθροισμα από Ποσό\". Η στήλη \"Αγοραστής\" περιέχει τις τιμές \"Πατέρας\", \"Μητέρα\", \"Στέλλα\" και \"Γενικό Άθροισμα\", ενώ η στήλη \"Άθροισμα από Ποσό\" περιέχει τις τιμές 220 €, 270 €, 810 € και 1.300 €. Η στήλη \"Αγοραστής\" αποτελείται από ένα πεδίο γραμμής και το ποσό της στήλης \"Άθροισμα από Ποσό\" αποτελείται από ένα πεδίο τιμών."]
["Για να συνεχίσετε με αυτό το πρόγραμμα εκμάθησης, πατήστε τον συνδυασμό πλήκτρων CTRL+PAGE DOWN. Για να μεταβείτε στο προηγούμενο φύλλο, πατήστε τον συνδυασμό πλήκτρων CTRL+PAGE UP."]
[]
[]
[]
[]
[null,"Ημερομηνία","Αγοραστής","Τύπος","Ποσό"]
["Αυτό το παράδειγμα δείχνει πώς το πεδίο γραμμών...","2017-01-01","Πατέρας","Δώρα",{"v":95,"d":"95 €"}]
["...αναλύει το πεδίο τιμών.","2017-01-15","Μητέρα","Φαγητό",{"v":325,"d":"325 €"},null,null,"Αγοραστής","Άθροισμα από Ποσό"]
[null,"2017-01-17","Μητέρα","Εισιτήρια",{"v":250,"d":"250 €"},null,null,"Πατέρας",{"v":220,"d":"220 €"}]
[null,"2017-01-21","Πατέρας","Φαγητό",{"v":125,"d":"125 €"},null,null,"Στέλλα",{"v":270,"d":"270 €"}]
[null,"2017-02-02","Μητέρα","Φαγητό",{"v":235,"d":"235 €"},null,null,"Μητέρα",{"v":810,"d":"810 €"}]
[null,"2017-02-20","Στέλλα","Μουσική",{"v":20,"d":"20 €"},null,null,"Γενικό Άθροισμα",{"v":1300,"d":"1,300 €"}]
[null,"2017-02-25","Στέλλα","Εισιτήρια",{"v":125,"d":"125 €"}]
[null,"2017-02-25","Στέλλα","Αθλητισμός",{"v":125,"d":"125 €"}]

{"sheet":"2","index":2,"n_rows":108,"n_cols":7,"rows_kept":108}
["Αλλά όταν δείτε για πρώτη φορά έναν Συγκεντρωτικό Πίνακα, ενδέχεται να κρίνετε ότι θέλετε να βλέπετε περισσότερες πληροφορίες."]
["Όταν δείτε για πρώτη φορά έναν Συγκεντρωτικό Πίνακα, μπορεί να έχετε ερωτήσεις όπως \"Πότε έγιναν αυτές οι αγορές;\", \"Σε τι ξόδεψε χρήματα το κάθε άτομο;\", \"Τι αγόρασε η μαμά που ήταν τόσο ακριβό;\"."]
["Σε αυτό το παράδειγμα, τα κελιά F11 έως G15 εμφανίζουν τον ίδιο Συγκεντρωτικό Πίνακα δύο στηλών, όπως και πριν. Η στήλη \"Αγοραστής\" είναι ένα πεδίο γραμμών και περιέχει τις τιμές \"Πατέρας\", \"Μητέρα\", \"Στέλλα\" και \"Γενικό Άθροισμα\", ενώ η στήλη \"Άθροισμα από Ποσό\" είναι το πεδίο τιμών, και περιέχει τις τιμές 220 €, 270 €, 810 € και 1.300 €. "]
["Για να συνεχίσετε με αυτό το πρόγραμμα εκμάθησης, πατήστε τον συνδυασμό πλήκτρων CTRL+PAGE DOWN. Για να μεταβείτε στο προηγούμενο φύλλο, πατήστε τον συνδυασμό πλήκτρων CTRL+PAGE UP."]
[]
[]
[]
[]
[]
[]
[{"$nulls":5},"Αγοραστής","Άθροισμα από Ποσό"]
[{"$nulls":5},"Πατέρας",{"v":220,"d":"220 €"}]
[{"$nulls":5},"Στέλλα",{"v":270,"d":"270 €"}]
[{"$nulls":5},"Μητέρα",{"v":810,"d":"810 €"}]
[{"$nulls":5},"Γενικό Άθροισμα",{"v":1300,"d":"1,300 €"}]
{"$rows_empty":84}
[null,"Ημερομηνία","Αγοραστής","Τύπος","Ποσό"]
[null,"2017-01-01","Πατέρας","Δώρα",{"v":95,"d":"95 €"}]
[null,"2017-01-15","Μητέρα","Φαγητό",{"v":325,"d":"325 €"}]
[null,"2017-01-17","Μητέρα","Εισιτήρια",{"v":250,"d":"250 €"}]
[null,"2017-01-21","Πατέρας","Φαγητό",{"v":125,"d":"125 €"}]
[null,"2017-02-02","Μητέρα","Φαγητό",{"v":235,"d":"235 €"}]
[null,"2017-02-20","Στέλλα","Μουσική",{"v":20,"d":"20 €"}]
[null,"2017-02-25","Στέλλα","Εισιτήρια",{"v":125,"d":"125 €"}]
[null,"2017-02-25","Στέλλα","Αθλητισμός",{"v":125,"d":"125 €"}]

{"sheet":"3","index":3,"n_rows":108,"n_cols":7,"rows_kept":108}
["Όλες αυτές οι ερωτήσεις είναι χρήσιμες, αλλά προς το παρόν, ας επικεντρωθούμε μόνο σε μία."]
["Σε τι ξόδεψε χρήματα το κάθε άτομο;"]
["Δείτε σχετικά τα κελιά F11 έως G15, τα οποία εμφανίζουν τον ίδιο Συγκεντρωτικό Πίνακα δύο στηλών, όπως και πριν. Η στήλη \"Αγοραστής\" είναι ένα πεδίο γραμμών και περιέχει τις τιμές \"Πατέρας\", \"Μητέρα\", \"Στέλλα\" και \"Γενικό Άθροισμα\", ενώ η στήλη \"Άθροισμα από Ποσό\" είναι το πεδίο τιμών, και περιέχει τις τιμές 220 €, 270 €, 810 € και 1.300 €. "]
["Για να συνεχίσετε με αυτό το πρόγραμμα εκμάθησης, πατήστε τον συνδυασμό πλήκτρων CTRL+PAGE DOWN. Για να μεταβείτε στο προηγούμενο φύλλο, πατήστε τον συνδυασμό πλήκτρων CTRL+PAGE UP."]
[]
[]
[]
[]
[]
[]
[{"$nulls":5},"Αγοραστής","Άθροισμα από Ποσό"]
[{"$nulls":5},"Πατέρας",{"v":220,"d":"220 €"}]
[{"$nulls":5},"Στέλλα",{"v":270,"d":"270 €"}]
[{"$nulls":5},"Μητέρα",{"v":810,"d":"810 €"}]
[{"$nulls":5},"Γενικό Άθροισμα",{"v":1300,"d":"1,300 €"}]
{"$rows_empty":84}
[null,"Ημερομηνία","Αγοραστής","Τύπος","Ποσό"]
[null,"2017-01-01","Πατέρας","Δώρα",{"v":95,"d":"95 €"}]
[null,"2017-01-15","Μητέρα","Φαγητό",{"v":325,"d":"325 €"}]
[null,"2017-01-17","Μητέρα","Εισιτήρια",{"v":250,"d":"250 €"}]
[null,"2017-01-21","Πατέρας","Φαγητό",{"v":125,"d":"125 €"}]
[null,"2017-02-02","Μητέρα","Φαγητό",{"v":235,"d":"235 €"}]
[null,"2017-02-20","Στέλλα","Μουσική",{"v":20,"d":"20 €"}]
[null,"2017-02-25","Στέλλα","Εισιτήρια",{"v":125,"d":"125 €"}]
[null,"2017-02-25","Στέλλα","Αθλητισμός",{"v":125,"d":"125 €"}]

{"sheet":"4","index":4,"n_rows":108,"n_cols":9,"rows_kept":108}
["Η τελευταία ερώτηση που κάναμε ήταν \"Σε τι ξόδεψε χρήματα το κάθε άτομο;\""]
["Απαντήσαμε αυτή την ερώτηση προσθέτοντας ένα πεδίο στηλών για το στοιχείο \"Τύπος\". Ως αποτέλεσμα, ο Συγκεντρωτικός πίνακας έχει πλέον πέντε νέες στήλες που μας δείχνουν τον τύπο αγοράς που έκανε κάθε άτομο. "]
["Ο νέος Συγκεντρωτικός Πίνακας τώρα εκτείνεται από το κελί C10 έως το κελί I15, με στήλες για τα στοιχεία \"Αγοραστής\", \"Φαγητό\", \"Μουσική\", \"Αθλητισμός\", \"Εισιτήρια\", \"Δώρα\" και \"Γενικό Άθροισμα\". Τα στοιχεία \"Αγοραστής\" και \"Γενικό Άθροισμα\" είναι τα ίδια με πριν και οι νέες στήλες λεπτομερειών είναι ανάμεσά τους."]
["Για να συνεχίσετε με αυτό το πρόγραμμα εκμάθησης, πατήστε τον συνδυασμό πλήκτρων CTRL+PAGE DOWN. Για να μεταβείτε στο προηγούμενο φύλλο, πατήστε τον συνδυασμό πλήκτρων CTRL+PAGE UP."]
[]
[]
[]
[]
[]
[null,null,"Άθροισμα από Ποσό","Τύπος"]
[null,null,"Αγοραστής","Φαγητό","Μουσική","Αθλητισμός","Εισιτήρια","Δώρα","Γενικό Άθροισμα"]
[null,null,"Πατέρας",{"v":125,"d":"125 €"},{"$nulls":3},{"v":95,"d":"95 €"},{"v":220,"d":"220 €"}]
[null,null,"Στέλλα",null,{"v":20,"d":"20 €"},{"v":125,"d":"125 €"},{"v":125,"d":"125 €"},null,{"v":270,"d":"270 €"}]
[null,null,"Μητέρα",{"v":560,"d":"560 €"},null,null,{"v":250,"d":"250 €"},null,{"v":810,"d":"810 €"}]
[null,null,"Γενικό Άθροισμα",{"v":685,"d":"685 €"},{"v":20,"d":"20 €"},{"v":125,"d":"125 €"},{"v":375,"d":"375 €"},{"v":95,"d":"95 €"},{"v":1300,"d":"1,300 €"}]
{"$rows_empty":84}
[null,"Ημερομηνία","Αγοραστής","Τύπος","Ποσό"]
[null,"2017-01-01","Πατέρας","Δώρα",{"v":95,"d":"95 €"}]
[null,"2017-01-15","Μητέρα","Φαγητό",{"v":325,"d":"325 €"}]
[null,"2017-01-17","Μητέρα","Εισιτήρια",{"v":250,"d":"250 €"}]
[null,"2017-01-21","Πατέρας","Φαγητό",{"v":125,"d":"125 €"}]
[null,"2017-02-02","Μητέρα","Φαγητό",{"v":235,"d":"235 €"}]
[null,"2017-02-20","Στέλλα","Μουσική",{"v":20,"d":"20 €"}]
[null,"2017-02-25","Στέλλα","Εισιτήρια",{"v":125,"d":"125 €"}]
[null,"2017-02-25","Στέλλα","Αθλητισμός",{"v":125,"d":"125 €"}]

{"sheet":"5","index":5,"n_rows":108,"n_cols":9,"rows_kept":108}
["Εάν ο Συγκεντρωτικός Πίνακας είναι δυσνόητος, δοκιμάστε τα εξής: Αναγνώστε τον από τα αριστερά και μετά από πάνω και, στη συνέχεια, από κάτω. Στο παρακάτω παράδειγμα, το στοιχείο \"Πατέρας\" είναι στο κελί C12, το \"Φαγητό\" για 125 € στο κελί D12, τα \"Δώρα\" για 95 € στο κελί E12, και το \"Γενικό Άθροισμα\" για 220 € στο κελί I12. Οι γραμμές 13 και 14 εμφανίζουν τις λεπτομέρειες για τη Στέλλα και τη Μητέρα, και η γραμμή 15 εμφανίζει το Γενικό Άθροισμα."]
["Για να συνεχίσετε με αυτό το πρόγραμμα εκμάθησης, πατήστε τον συνδυασμό πλήκτρων CTRL+PAGE DOWN. Για να μεταβείτε στο προηγούμενο φύλλο, πατήστε τον συνδυασμό πλήκτρων CTRL+PAGE UP."]
{"$rows_empty":7}
[null,null,"Άθροισμα από Ποσό","Τύπος"]
[null,null,"Αγοραστής","Φαγητό","Δώρα","Μουσική","Αθλητισμός","Εισιτήρια","Γενικό Άθροισμα"]
[null,null,"Πατέρας",{"v":125,"d":"125 €"},{"v":95,"d":"95 €"},{"$nulls":3},{"v":220,"d":"220 €"}]
[null,null,"Στέλλα",null,null,{"v":20,"d":"20 €"},{"v":125,"d":"125 €"},{"v":125,"d":"125 €"},{"v":270,"d":"270 €"}]
[null,null,"Μητέρα",{"v":560,"d":"560 €"},{"$nulls":3},{"v":250,"d":"250 €"},{"v":810,"d":"810 €"}]
[null,null,"Γενικό Άθροισμα",{"v":685,"d":"685 €"},{"v":95,"d":"95 €"},{"v":20,"d":"20 €"},{"v":125,"d":"125 €"},{"v":375,"d":"375 €"},{"v":1300,"d":"1,300 €"}]
{"$rows_empty":84}
[null,"Ημερομηνία","Αγοραστής","Τύπος","Ποσό"]
[null,"2017-01-01","Πατέρας","Δώρα",{"v":95,"d":"95 €"}]
[null,"2017-01-15","Μητέρα","Φαγητό",{"v":325,"d":"325 €"}]
[null,"2017-01-17","Μητέρα","Εισιτήρια",{"v":250,"d":"250 €"}]
[null,"2017-01-21","Πατέρας","Φαγητό",{"v":125,"d":"125 €"}]
[null,"2017-02-02","Μητέρα","Φαγητό",{"v":235,"d":"235 €"}]
[null,"2017-02-20","Στέλλα","Μουσική",{"v":20,"d":"20 €"}]
[null,"2017-02-25","Στέλλα","Εισιτήρια",{"v":125,"d":"125 €"}]
[null,"2017-02-25","Στέλλα","Αθλητισμός",{"v":125,"d":"125 €"}]

{"sheet":"6","index":6,"n_rows":3,"n_cols":1,"rows_kept":3}
["Μην το κάνετε αυτό τώρα, αλλά μετά από λίγα βήματα, θα εργάζεστε σε έναν Συγκεντρωτικό Πίνακα. Το πρώτο πράγμα που πρέπει να κάνετε είναι να δημιουργήσετε λεπτομέρειες στο πεδίο στηλών. Για να το κάνετε, τοποθετήστε το πεδίο \"Τύπος\" στην περιοχή του πεδίου στηλών."]
["Μια εικόνα της λίστας \"Πεδία Συγκεντρωτικού Πίνακα\" εμφανίζει έναν δείκτη σε σχήμα βέλους που μεταφέρει το πεδίο \"Τύπος\" στην περιοχή \"Στήλες\"."]
["Για να συνεχίσετε με αυτό το πρόγραμμα εκμάθησης, πατήστε τον συνδυασμό πλήκτρων CTRL+PAGE DOWN. Για να μεταβείτε στο προηγούμενο φύλλο, πατήστε τον συνδυασμό πλήκτρων CTRL+PAGE UP."]

{"sheet":"7","index":7,"n_rows":108,"n_cols":8,"rows_kept":108}
["1. Η περιοχή Συγκεντρωτικού Πίνακα σε αυτό το παράδειγμα είναι στα κελιά B13 έως C17. Μεταβείτε σε οποιοδήποτε από αυτά τα κελιά."]
["2. Πατήστε τον συνδυασμό πλήκτρων ALT+ΞΛ, Μ2 για να ανοίξετε τη λίστα \"Πεδία Συγκεντρωτικού Πίνακα\". Η εστίαση θα είναι από προεπιλογή στο πλαίσιο κειμένου \"Αναζήτηση\": Επεξεργασία στο πλαίσιο \"Αναζήτηση\""]
["3. Πατήστε τα πλήκτρα βέλους για να επιλέξετε το πεδίο \"Τύπος\". Μόλις επιλεχθεί, πατήστε το πλήκτρο ΔΙΑΣΤΉΜΑΤΟΣ για να προσθέσετε το πεδίο \"Τύπος\" στην περιοχή γραμμών. "]
["4. Πατήστε το πλήκτρο Tab για να επιλέξετε το πεδίο \"Τύπος\". Πατήστε το πλήκτρο Enter και, στη συνέχεια, πατήστε τα πλήκτρα βέλους για να επιλέξετε \"Μετακίνηση στις ετικέτες στηλών\" και πατήστε το πλήκτρο Enter για να προσθέσετε το πεδίο \"Τύπος\" στην περιοχή \"Στήλες\". Πατήστε τον συνδυασμό πλήκτρων ALT+ΞΛ, Μ2 για έξοδο από τη λίστα \"Πεδία Συγκεντρωτικού Πίνακα\"."]
["Για να συνεχίσετε με αυτό το πρόγραμμα εκμάθησης, πατήστε τον συνδυασμό πλήκτρων CTRL+PAGE DOWN. Για να μεταβείτε στο προηγούμενο φύλλο, πατήστε τον συνδυασμό πλήκτρων CTRL+PAGE UP."]
[]
[]
[]
[{"$nulls":7},{"$f":"IF(AND($B$14=\"Αγοραστής\",$H$17=810),\"Πολύ ωραία! Τοποθετήσατε το\",\" \")","v":" "}]
[{"$nulls":7},{"$f":"IF(AND($B$14=\"Αγοραστής\",$H$17=810),\"πρώτο πεδίο στηλών. Κάντε κλικ\",\" \")","v":" "}]
[{"$nulls":7},{"$f":"IF(AND($B$14=\"Αγοραστής\",$H$17=810),\"στην επιλογή 'Επόμενο' για να συνεχίσετε...\",\" \")","v":" "}]
[]
[null,"Αγοραστής","Άθροισμα από Ποσό"]
[null,"Πατέρας",{"v":220,"d":"220 €"}]
[null,"Στέλλα",{"v":270,"d":"270 €"}]
[null,"Μητέρα",{"v":810,"d":"810 €"}]
[null,"Γενικό Άθροισμα",{"v":1300,"d":"1,300 €"}]
{"$rows_empty":82}
[null,"Ημερομηνία","Αγοραστής","Τύπος","Ποσό"]
[null,"2017-01-01","Πατέρας","Δώρα",{"v":95,"d":"95 €"}]
[null,"2017-01-15","Μητέρα","Φαγητό",{"v":325,"d":"325 €"}]
[null,"2017-01-17","Μητέρα","Εισιτήρια",{"v":250,"d":"250 €"}]
[null,"2017-01-21","Πατέρας","Φαγητό",{"v":125,"d":"125 €"}]
[null,"2017-02-02","Μητέρα","Φαγητό",{"v":235,"d":"235 €"}]
[null,"2017-02-20","Στέλλα","Μουσική",{"v":20,"d":"20 €"}]
[null,"2017-02-25","Στέλλα","Εισιτήρια",{"v":125,"d":"125 €"}]
[null,"2017-02-25","Στέλλα","Αθλητισμός",{"v":125,"d":"125 €"}]

{"sheet":"8","index":8,"n_rows":108,"n_cols":9,"rows_kept":108}
["Ας εξετάσουμε τον Συγκεντρωτικό Πίνακα που μόλις δημιουργήσατε, μόνο που αυτήν τη φορά προσθέσαμε ορισμένα ειδικά χρώματα για να ξεχωρίζετε τα πεδία γραμμών, στηλών και τιμών."]
["Το πεδίο γραμμών εκτείνεται από το κελί C10 έως το C13 και είναι σκιασμένο με κίτρινο χρώμα."]
["Το πεδίο στηλών εκτείνεται από το κελί D9 έως το H10, και είναι σκιασμένο με κίτρινο χρώμα."]
["Το Πεδίο τιμών εκτείνεται από το κελί D11 έως το H13 και είναι σκιασμένο με μπλε χρώμα."]
["Για να συνεχίσετε με αυτό το πρόγραμμα εκμάθησης, πατήστε τον συνδυασμό πλήκτρων CTRL+PAGE DOWN. Για να μεταβείτε στο προηγούμενο φύλλο, πατήστε τον συνδυασμό πλήκτρων CTRL+PAGE UP."]
[]
[]
[]
[null,null,"Άθροισμα από Ποσό","Τύπος"]
[null,null,"Αγοραστής","Φαγητό","Δώρα","Μουσική","Αθλητισμός","Εισιτήρια","Γενικό Άθροισμα"]
[null,null,"Πατέρας",{"v":125,"d":"125 €"},{"v":95,"d":"95 €"},{"$nulls":3},{"v":220,"d":"220 €"}]
[null,null,"Στέλλα",null,null,{"v":20,"d":"20 €"},{"v":125,"d":"125 €"},{"v":125,"d":"125 €"},{"v":270,"d":"270 €"}]
[null,null,"Μητέρα",{"v":560,"d":"560 €"},{"$nulls":3},{"v":250,"d":"250 €"},{"v":810,"d":"810 €"}]
[null,null,"Γενικό Άθροισμα",{"v":685,"d":"685 €"},{"v":95,"d":"95 €"},{"v":20,"d":"20 €"},{"v":125,"d":"125 €"},{"v":375,"d":"375 €"},{"v":1300,"d":"1,300 €"}]
{"$rows_empty":85}
[null,"Ημερομηνία","Αγοραστής","Τύπος","Ποσό"]
[null,"2017-01-01","Πατέρας","Δώρα",{"v":95,"d":"95 €"}]
[null,"2017-01-15","Μητέρα","Φαγητό",{"v":325,"d":"325 €"}]
[null,"2017-01-17","Μητέρα","Εισιτήρια",{"v":250,"d":"250 €"}]
[null,"2017-01-21","Πατέρας","Φαγητό",{"v":125,"d":"125 €"}]
[null,"2017-02-02","Μητέρα","Φαγητό",{"v":235,"d":"235 €"}]
[null,"2017-02-20","Στέλλα","Μουσική",{"v":20,"d":"20 €"}]
[null,"2017-02-25","Στέλλα","Εισιτήρια",{"v":125,"d":"125 €"}]
[null,"2017-02-25","Στέλλα","Αθλητισμός",{"v":125,"d":"125 €"}]

{"sheet":"9","index":9,"n_rows":3,"n_cols":1,"rows_kept":3}
["Υπάρχει κι άλλος τρόπος να τον δείτε: Το πεδίο γραμμών είναι στα αριστερά και το πεδίο στηλών στο επάνω μέρος. Κάθε ένα από αυτά παρέχει μια συνθήκη στο πεδίο τιμών, το οποίο τα αθροίζει."]
["Μια εννοιολογική εικόνα εμφανίζει μια ορθογώνια περιοχή με 4 τμήματα, με το πεδίο γραμμών κάτω αριστερά σε κίτρινο χρώμα, το πεδίο στηλών επάνω δεξιά σε πορτοκαλί χρώμα και το Πεδίο τιμών κάτω δεξιά γωνία με μπλε χρώμα."]
["Για να συνεχίσετε με αυτό το πρόγραμμα εκμάθησης, πατήστε τον συνδυασμό πλήκτρων CTRL+PAGE DOWN. Για να μεταβείτε στο προηγούμενο φύλλο, πατήστε τον συνδυασμό πλήκτρων CTRL+PAGE UP."]

{"sheet":"10","index":10,"n_rows":3,"n_cols":1,"rows_kept":3}
["Ακολουθήστε αυτήν τη λογική όταν χρησιμοποιείτε τη λίστα πεδίων. Το πεδίο γραμμών είναι στα αριστερά και το πεδίο στηλών στο επάνω μέρος. Κάθε ένα από αυτά παρέχει μια συνθήκη στο πεδίο τιμών, το οποίο τα αθροίζει."]
["Μια εννοιολογική εικόνα εμφανίζει τη λίστα \"Πεδία Συγκεντρωτικού Πίνακα\", με το πεδίο γραμμών κάτω αριστερά σε κίτρινο χρώμα, το πεδίο στηλών επάνω δεξιά σε πορτοκαλί χρώμα και το πεδίο τιμών κάτω δεξιά γωνία με μπλε χρώμα."]
["Για να συνεχίσετε με αυτό το πρόγραμμα εκμάθησης, πατήστε τον συνδυασμό πλήκτρων CTRL+PAGE DOWN. Για να μεταβείτε στο προηγούμενο φύλλο, πατήστε τον συνδυασμό πλήκτρων CTRL+PAGE UP."]

{"sheet":"11","index":11,"n_rows":121,"n_cols":24,"rows_kept":121}
["Λάβετε υπόψη το εξής: Εάν το πεδίο στηλών προσθέσει πολλές στήλες σε έναν Συγκεντρωτικό Πίνακα, θα τον κάνει πολύ πλατύ. "]
["Σε αυτό το παράδειγμα, ο Συγκεντρωτικός Πίνακας τώρα εκτείνεται από το κελί C10 έως το X15, καθώς το πεδίο στηλών πρόσθεσε 20 νέες στήλες. Πρόκειται για πολλές στήλες! Αυτό θα έχει ως αποτέλεσμα οι χρήστες να κάνουν συνέχεια κύλιση..."]
["Για να συνεχίσετε με αυτό το πρόγραμμα εκμάθησης, πατήστε τον συνδυασμό πλήκτρων CTRL+PAGE DOWN. Για να μεταβείτε στο προηγούμενο φύλλο, πατήστε τον συνδυασμό πλήκτρων CTRL+PAGE UP."]
[]
[]
[]
[]
[]
[]
[null,null,"Άθροισμα από Ποσό","Τύπος"]
[null,null,"Αγοραστής","Αεροπορικά εισιτήρια","Αθλητισμός","Ασφάλεια αυτοκινήτου","Ασφάλεια κατοικίας","Ασφάλεια υγείας","Βιβλία","Εισιτήρια","Εστιατόρια","Ηλεκτρικό","Ηλεκτρονικά","Ιατρικά","Καύσιμα","Μαθήματα μουσικής","Μουσική","Οδοντιατρικά","Ρούχα","Στάθμευση","Συνδρομές σε λέσχες","Φαγητό","Φόροι","Γενικό Άθροισμα"]
[null,null,"Μητέρα",null,null,{"v":74,"d":"74 €"},{"v":235,"d":"235 €"},{"v":70,"d":"70 €"},{"$nulls":3},{"v":70,"d":"70 €"},null,{"v":74,"d":"74 €"},{"v":74,"d":"74 €"},null,null,{"v":235,"d":"235 €"},null,null,{"v":125,"d":"125 €"},{"v":470,"d":"470 €"},null,{"v":1427,"d":"1,427 €"}]
[null,null,"Πατέρας",{"v":500,"d":"500 €"},{"v":1000,"d":"1,000 €"},{"$nulls":17},{"v":500,"d":"500 €"},{"v":2000,"d":"2,000 €"}]
[null,null,"Στέλλα",{"$nulls":5},{"v":250,"d":"250 €"},{"v":125,"d":"125 €"},{"v":20,"d":"20 €"},null,{"v":125,"d":"125 €"},null,null,{"v":250,"d":"250 €"},{"v":20,"d":"20 €"},null,{"v":125,"d":"125 €"},{"v":20,"d":"20 €"},{"$nulls":3},{"v":935,"d":"935 €"}]
[null,null,"Γενικό Άθροισμα",{"v":500,"d":"500 €"},{"v":1000,"d":"1,000 €"},{"v":74,"d":"74 €"},{"v":235,"d":"235 €"},{"v":70,"d":"70 €"},{"v":250,"d":"250 €"},{"v":125,"d":"125 €"},{"v":20,"d":"20 €"},{"v":70,"d":"70 €"},{"v":125,"d":"125 €"},{"v":74,"d":"74 €"},{"v":74,"d":"74 €"},{"v":250,"d":"250 €"},{"v":20,"d":"20 €"},{"v":235,"d":"235 €"},{"v":125,"d":"125 €"},{"v":20,"d":"20 €"},{"v":125,"d":"125 €"},{"v":470,"d":"470 €"},{"v":500,"d":"500 €"},{"v":4362,"d":"4,362 €"}]
{"$rows_empty":84}
[null,"Ημερομηνία","Αγοραστής","Τύπος","Ποσό"]
[null,"2017-01-17","Πατέρας","Αθλητισμός",{"v":1000,"d":"1,000 €"}]
[null,"2017-01-17","Πατέρας","Αεροπορικά εισιτήρια",{"v":500,"d":"500 €"}]
[null,"2017-01-17","Πατέρας","Φόροι",{"v":500,"d":"500 €"}]
[null,"2017-02-20","Στέλλα","Μουσική",{"v":20,"d":"20 €"}]
[null,"2017-02-25","Στέλλα","Εισιτήρια",{"v":125,"d":"125 €"}]
[null,"2017-01-21","Στέλλα","Βιβλία",{"v":250,"d":"250 €"}]
[null,"2017-02-20","Στέλλα","Εστιατόρια",{"v":20,"d":"20 €"}]
[null,"2017-02-25","Στέλλα","Ρούχα",{"v":125,"d":"125 €"}]
[null,"2017-01-21","Στέλλα","Μαθήματα μουσικής",{"v":250,"d":"250 €"}]
[null,"2017-02-20","Στέλλα","Στάθμευση",{"v":20,"d":"20 €"}]
[null,"2017-02-25","Στέλλα","Ηλεκτρονικά",{"v":125,"d":"125 €"}]
[null,"2017-01-01","Μητέρα","Καύσιμα",{"v":74,"d":"74 €"}]
[null,"2017-01-15","Μητέρα","Φαγητό",{"v":235,"d":"235 €"}]
[null,"2017-01-21","Μητέρα","Συνδρομές σε λέσχες",{"v":125,"d":"125 €"}]
[null,"2017-02-02","Μητέρα","Φαγητό",{"v":235,"d":"235 €"}]
[null,"2017-01-01","Μητέρα","Ιατρικά",{"v":74,"d":"74 €"}]
[null,"2017-01-15","Μητέρα","Ηλεκτρικό",{"v":70,"d":"70 €"}]
[null,"2017-02-02","Μητέρα","Οδοντιατρικά",{"v":235,"d":"235 €"}]
[null,"2017-01-01","Μητέρα","Ασφάλεια αυτοκινήτου",{"v":74,"d":"74 €"}]
[null,"2017-01-15","Μητέρα","Ασφάλεια υγείας",{"v":70,"d":"70 €"}]
[null,"2017-02-02","Μητέρα","Ασφάλεια κατοικίας",{"v":235,"d":"235 €"}]

{"sheet":"12","index":12,"n_rows":119,"n_cols":5,"rows_kept":119}
["Υπάρχει μια λύση για τους πολύ μεγάλους Συγκεντρωτικούς Πίνακες: μπορείτε εναλλακτικά να χρησιμοποιήσετε ένα δεύτερο πεδίο γραμμών. Το δεύτερο πεδίο γραμμών θα εμφανιστεί με εσοχή κάτω από το πρώτο πεδίο γραμμών."]
["Σε αυτό το παράδειγμα, υπάρχει ένας Συγκεντρωτικός Πίνακας από το κελί D8 έως το E32. Εμφανίζει τα στοιχεία \"Πατέρας\", \"Στέλλα\" και \"Μητέρα\" ως πεδία της πρώτης γραμμής στη στήλη D. Και οι τύποι δαπανών βρίσκονται από κάτω τους, ως πεδία της δεύτερης γραμμής, με στοιχεία όπως \"Αθλητικά\", \"Αεροπορικά εισιτήρια\", \"Εστιατόρια\" κ.λπ."]
["ΚΑΛΟ ΕΙΝΑΙ ΝΑ ΓΝΩΡΙΖΕΤΕ\nΈνα δεύτερο πεδίο γραμμών δημιουργεί έναν Συγκεντρωτικό Πίνακα με κατακόρυφο προσανατολισμό αντί για οριζόντιο. Ορισμένα άτομα θεωρούν ότι οι  Συγκεντρωτικοί Πίνακες με κάθετο προσανατολισμό είναι πιο εύκολοι στην ανάγνωση γιατί δεν απαιτούν τόση κύλιση από τη μία άκρη στην άλλη."]
["ΠΛΗΡΟΦΟΡΙΑ ΤΟΥ EXCEL\nΜερικές φορές κάποια άτομα αποκαλούν το δεύτερο πεδίο γραμμών \"δευτερεύον πεδίο γραμμών\"."]
["Για να συνεχίσετε με αυτό το πρόγραμμα εκμάθησης, πατήστε τον συνδυασμό πλήκτρων CTRL+PAGE DOWN. Για να μεταβείτε στο προηγούμενο φύλλο, πατήστε τον συνδυασμό πλήκτρων CTRL+PAGE UP."]
[]
[]
[{"$nulls":3},"Ετικέτες γραμμής","Άθροισμα από Ποσό"]
[{"$nulls":3},"Πατέρας",{"v":2000,"d":"2,000 €"}]
[{"$nulls":3},"Αεροπορικά εισιτήρια",{"v":500,"d":"500 €"}]
[{"$nulls":3},"Αθλητισμός",{"v":1000,"d":"1,000 €"}]
[{"$nulls":3},"Φόροι",{"v":500,"d":"500 €"}]
[{"$nulls":3},"Στέλλα",{"v":935,"d":"935 €"}]
[{"$nulls":3},"Βιβλία",{"v":250,"d":"250 €"}]
[{"$nulls":3},"Εισιτήρια",{"v":125,"d":"125 €"}]
[{"$nulls":3},"Εστιατόρια",{"v":20,"d":"20 €"}]
[{"$nulls":3},"Ηλεκτρονικά",{"v":125,"d":"125 €"}]
[{"$nulls":3},"Μαθήματα μουσικής",{"v":250,"d":"250 €"}]
[{"$nulls":3},"Μουσική",{"v":20,"d":"20 €"}]
[{"$nulls":3},"Ρούχα",{"v":125,"d":"125 €"}]
[{"$nulls":3},"Στάθμευση",{"v":20,"d":"20 €"}]
[{"$nulls":3},"Μητέρα",{"v":1427,"d":"1,427 €"}]
[{"$nulls":3},"Ασφάλεια αυτοκινήτου",{"v":74,"d":"74 €"}]
[{"$nulls":3},"Ασφάλεια κατοικίας",{"v":235,"d":"235 €"}]
[{"$nulls":3},"Ασφάλεια υγείας",{"v":70,"d":"70 €"}]
[{"$nulls":3},"Ηλεκτρικό",{"v":70,"d":"70 €"}]
[{"$nulls":3},"Ιατρικά",{"v":74,"d":"74 €"}]
[{"$nulls":3},"Καύσιμα",{"v":74,"d":"74 €"}]
[{"$nulls":3},"Οδοντιατρικά",{"v":235,"d":"235 €"}]
[{"$nulls":3},"Συνδρομές σε λέσχες",{"v":125,"d":"125 €"}]
[{"$nulls":3},"Φαγητό",{"v":470,"d":"470 €"}]
[{"$nulls":3},"Γενικό Άθροισμα",{"v":4362,"d":"4,362 €"}]
{"$rows_empty":65}
[null,"Ημερομηνία","Αγοραστής","Τύπος","Ποσό"]
[null,"2017-01-17","Πατέρας","Αθλητισμός",{"v":1000,"d":"1,000 €"}]
[null,"2017-01-17","Πατέρας","Αεροπορικά εισιτήρια",{"v":500,"d":"500 €"}]
[null,"2017-01-17","Πατέρας","Φόροι",{"v":500,"d":"500 €"}]
[null,"2017-02-20","Στέλλα","Μουσική",{"v":20,"d":"20 €"}]
[null,"2017-02-25","Στέλλα","Εισιτήρια",{"v":125,"d":"125 €"}]
[null,"2017-01-21","Στέλλα","Βιβλία",{"v":250,"d":"250 €"}]
[null,"2017-02-20","Στέλλα","Εστιατόρια",{"v":20,"d":"20 €"}]
[null,"2017-02-25","Στέλλα","Ρούχα",{"v":125,"d":"125 €"}]
[null,"2017-01-21","Στέλλα","Μαθήματα μουσικής",{"v":250,"d":"250 €"}]
[null,"2017-02-20","Στέλλα","Στάθμευση",{"v":20,"d":"20 €"}]
[null,"2017-02-25","Στέλλα","Ηλεκτρονικά",{"v":125,"d":"125 €"}]
[null,"2017-01-01","Μητέρα","Καύσιμα",{"v":74,"d":"74 €"}]
[null,"2017-01-15","Μητέρα","Φαγητό",{"v":235,"d":"235 €"}]
[null,"2017-01-21","Μητέρα","Συνδρομές σε λέσχες",{"v":125,"d":"125 €"}]
[null,"2017-02-02","Μητέρα","Φαγητό",{"v":235,"d":"235 €"}]
[null,"2017-01-01","Μητέρα","Ιατρικά",{"v":74,"d":"74 €"}]
[null,"2017-01-15","Μητέρα","Ηλεκτρικό",{"v":70,"d":"70 €"}]
[null,"2017-02-02","Μητέρα","Οδοντιατρικά",{"v":235,"d":"235 €"}]
[null,"2017-01-01","Μητέρα","Ασφάλεια αυτοκινήτου",{"v":74,"d":"74 €"}]
[null,"2017-01-15","Μητέρα","Ασφάλεια υγείας",{"v":70,"d":"70 €"}]
[null,"2017-02-02","Μητέρα","Ασφάλεια κατοικίας",{"v":235,"d":"235 €"}]

{"sheet":"13","index":13,"n_rows":3,"n_cols":1,"rows_kept":3}
["Στο επόμενο φύλλο, θα προσθέσετε ένα δεύτερο πεδίο γραμμής. Για να το κάνετε, τοποθετήστε το πεδίο Τύπος κάτω από το πεδίο Αγοραστής στο πεδίο γραμμών."]
["Μια εικόνα της λίστας \"Πεδία Συγκεντρωτικού Πίνακα\" που εμφανίζει έναν δείκτη σε σχήμα βέλους που μεταφέρει το πεδίο \"Τύπος\" στην περιοχή γραμμών."]
["Για να συνεχίσετε με αυτό το πρόγραμμα εκμάθησης, πατήστε τον συνδυασμό πλήκτρων CTRL+PAGE DOWN. Για να μεταβείτε στο προηγούμενο φύλλο, πατήστε τον συνδυασμό πλήκτρων CTRL+PAGE UP."]

{"sheet":"14","index":14,"n_rows":122,"n_cols":9,"rows_kept":122}
["1. Η περιοχή Συγκεντρωτικού Πίνακα σε αυτό το παράδειγμα είναι στα κελιά B13 έως C17. Μεταβείτε σε οποιοδήποτε από αυτά τα κελιά. "]
["2. Πατήστε τον συνδυασμό πλήκτρων ALT+ΞΛ, Μ2 για να ανοίξετε τη λίστα \"Πεδία Συγκεντρωτικού Πίνακα\". Η εστίαση θα είναι από προεπιλογή στο πλαίσιο κειμένου \"Αναζήτηση\": Αλλάξτε το κείμενο \"Πληκτρολογήστε λέξεις για αναζήτηση\". Μην πληκτρολογήσετε κάτι, απλώς πατήστε μία φορά το πλήκτρο Tab. ΣΗΜΕΊΩΣΗ: Εάν η λίστα πεδίων δεν ανοίγει, πατήστε ξανά τον συνδυασμό πλήκτρων ALT+ΞΛ, Μ2."]
["3. Πατήστε τα πλήκτρα βέλους για να μετακινηθείτε στο πεδίο \"Τύπος\". Πατήστε το πλήκτρο ΔΙΑΣΤΉΜΑΤΟΣ για να προσθέσετε το πεδίο \"Τύπος\" στην περιοχή γραμμών. "]
["4. Πατήστε το πλήκτρο ESC για να κλείσετε το παράθυρο \"Πεδία Συγκεντρωτικού Πίνακα\". "]
["Για να συνεχίσετε με αυτό το πρόγραμμα εκμάθησης, πατήστε τον συνδυασμό πλήκτρων CTRL+PAGE DOWN. Για να μεταβείτε στο προηγούμενο φύλλο, πατήστε τον συνδυασμό πλήκτρων CTRL+PAGE UP.",{"$nulls":7},{"$f":"IF(AND($B$15=\"Ασφάλεια αυτοκινήτου\",$C$36=20),\"Μπράβο! Προσθέσατε ένα δεύτερο\",\" \")","v":" "}]
[{"$nulls":8},{"$f":"IF(AND($B$15=\"Ασφάλεια αυτοκινήτου\",$C$36=20),\"πεδίο γραμμών στον Συγκεντρωτικό\",\" \")","v":" "}]
[{"$nulls":8},{"$f":"IF(AND($B$15=\"Ασφάλεια αυτοκινήτου\",$C$36=20),\"Πίνακα. Κάντε κύλιση προς τα κάτω\",\" \")","v":" "}]
[{"$nulls":8},{"$f":"IF(AND($B$15=\"Ασφάλεια αυτοκινήτου\",$C$36=20),\"και κάντε κλικ στην επιλογή 'Επόμενο'...\",\" \")","v":" "}]
[]
[]
[]
[]
[null,"Ετικέτες γραμμής","Άθροισμα από Ποσό"]
[null,"Μητέρα",{"v":1427,"d":"1,427 €"}]
[null,"Πατέρας",{"v":2000,"d":"2,000 €"}]
[null,"Στέλλα",{"v":935,"d":"935 €"}]
[null,"Γενικό Άθροισμα",{"v":4362,"d":"4,362 €"}]
{"$rows_empty":83}
[null,"Ημερομηνία","Αγοραστής","Τύπος","Ποσό"]
[null,"2017-01-17","Πατέρας","Αθλητισμός",{"v":1000,"d":"1,000 €"}]
[null,"2017-01-17","Πατέρας","Αεροπορικά εισιτήρια",{"v":500,"d":"500 €"}]
[null,"2017-01-17","Πατέρας","Φόροι",{"v":500,"d":"500 €"}]
[null,"2017-02-20","Στέλλα","Μουσική",{"v":20,"d":"20 €"}]
[null,"2017-02-25","Στέλλα","Εισιτήρια",{"v":125,"d":"125 €"}]
[null,"2017-01-21","Στέλλα","Βιβλία",{"v":250,"d":"250 €"}]
[null,"2017-02-20","Στέλλα","Εστιατόρια",{"v":20,"d":"20 €"}]
[null,"2017-02-25","Στέλλα","Ρούχα",{"v":125,"d":"125 €"}]
[null,"2017-01-21","Στέλλα","Μαθήματα μουσικής",{"v":250,"d":"250 €"}]
[null,"2017-02-20","Στέλλα","Στάθμευση",{"v":20,"d":"20 €"}]
[null,"2017-02-25","Στέλλα","Ηλεκτρονικά",{"v":125,"d":"125 €"}]
[null,"2017-01-01","Μητέρα","Καύσιμα",{"v":74,"d":"74 €"}]
[null,"2017-01-15","Μητέρα","Φαγητό",{"v":235,"d":"235 €"}]
[null,"2017-01-21","Μητέρα","Συνδρομές σε λέσχες",{"v":125,"d":"125 €"}]
[null,"2017-02-02","Μητέρα","Φαγητό",{"v":235,"d":"235 €"}]
[null,"2017-01-01","Μητέρα","Ιατρικά",{"v":74,"d":"74 €"}]
[null,"2017-01-15","Μητέρα","Ηλεκτρικό",{"v":70,"d":"70 €"}]
[null,"2017-02-02","Μητέρα","Οδοντιατρικά",{"v":235,"d":"235 €"}]
[null,"2017-01-01","Μητέρα","Ασφάλεια αυτοκινήτου",{"v":74,"d":"74 €"}]
[null,"2017-01-15","Μητέρα","Ασφάλεια υγείας",{"v":70,"d":"70 €"}]
[null,"2017-02-02","Μητέρα","Ασφάλεια κατοικίας",{"v":235,"d":"235 €"}]

{"sheet":"15","index":15,"n_rows":121,"n_cols":7,"rows_kept":121}
["Εάν θέλετε να απλοποιήσετε τον Συγκεντρωτικό Πίνακα, μπορείτε να συμπτύξετε τα δεδομένα για το δεύτερο πεδίο γραμμών προς τα επάνω, ώστε να σταματήσουν να φαίνονται. "]
["Η περιοχή Συγκεντρωτικού Πίνακα σε αυτό το παράδειγμα είναι στα κελιά F7 έως G31. Επιλέξτε το κελί F8 για να επιλέξετε το πρώτο πεδίο γραμμών για το στοιχείο \"Πατέρας\". Στη συνέχεια, πατήστε τον συνδυασμό πλήκτρων Alt+ΞΛ > Ν για να επεκτείνετε το δεύτερο πεδίο ή το ΣΜ για να το συμπτύξετε."]
["Για να συνεχίσετε με αυτό το πρόγραμμα εκμάθησης, πατήστε τον συνδυασμό πλήκτρων CTRL+PAGE DOWN. Για να μεταβείτε στο προηγούμενο φύλλο, πατήστε τον συνδυασμό πλήκτρων CTRL+PAGE UP."]
[]
[]
[{"$nulls":5},{"$f":"IF(AND($F$9=\"Στέλλα\",$G$9=935),\"Ωραία!\",\" \")","v":" "}]
[{"$nulls":5},"Ετικέτες γραμμής","Άθροισμα από Ποσό"]
[{"$nulls":5},"Πατέρας",{"v":2000,"d":"2,000 €"}]
[{"$nulls":5},"Αεροπορικά εισιτήρια",{"v":500,"d":"500 €"}]
[{"$nulls":5},"Αθλητισμός",{"v":1000,"d":"1,000 €"}]
[{"$nulls":5},"Φόροι",{"v":500,"d":"500 €"}]
[{"$nulls":5},"Στέλλα",{"v":935,"d":"935 €"}]
[{"$nulls":5},"Βιβλία",{"v":250,"d":"250 €"}]
[{"$nulls":5},"Εισιτήρια",{"v":125,"d":"125 €"}]
[{"$nulls":5},"Εστιατόρια",{"v":20,"d":"20 €"}]
[{"$nulls":5},"Ηλεκτρονικά",{"v":125,"d":"125 €"}]
[{"$nulls":5},"Μαθήματα μουσικής",{"v":250,"d":"250 €"}]
[{"$nulls":5},"Μουσική",{"v":20,"d":"20 €"}]
[{"$nulls":5},"Ρούχα",{"v":125,"d":"125 €"}]
[{"$nulls":5},"Στάθμευση",{"v":20,"d":"20 €"}]
[{"$nulls":5},"Μητέρα",{"v":1427,"d":"1,427 €"}]
[{"$nulls":5},"Ασφάλεια αυτοκινήτου",{"v":74,"d":"74 €"}]
[{"$nulls":5},"Ασφάλεια κατοικίας",{"v":235,"d":"235 €"}]
[{"$nulls":5},"Ασφάλεια υγείας",{"v":70,"d":"70 €"}]
[{"$nulls":5},"Ηλεκτρικό",{"v":70,"d":"70 €"}]
[{"$nulls":5},"Ιατρικά",{"v":74,"d":"74 €"}]
[{"$nulls":5},"Καύσιμα",{"v":74,"d":"74 €"}]
[{"$nulls":5},"Οδοντιατρικά",{"v":235,"d":"235 €"}]
[{"$nulls":5},"Συνδρομές σε λέσχες",{"v":125,"d":"125 €"}]
[{"$nulls":5},"Φαγητό",{"v":470,"d":"470 €"}]
[{"$nulls":5},"Γενικό Άθροισμα",{"v":4362,"d":"4,362 €"}]
{"$rows_empty":68}
[null,"Ημερομηνία","Αγοραστής","Τύπος","Ποσό"]
[null,"2017-01-17","Πατέρας","Αθλητισμός",{"v":1000,"d":"1,000 €"}]
[null,"2017-01-17","Πατέρας","Αεροπορικά εισιτήρια",{"v":500,"d":"500 €"}]
[null,"2017-01-17","Πατέρας","Φόροι",{"v":500,"d":"500 €"}]
[null,"2017-02-20","Στέλλα","Μουσική",{"v":20,"d":"20 €"}]
[null,"2017-02-25","Στέλλα","Εισιτήρια",{"v":125,"d":"125 €"}]
[null,"2017-01-21","Στέλλα","Βιβλία",{"v":250,"d":"250 €"}]
[null,"2017-02-20","Στέλλα","Εστιατόρια",{"v":20,"d":"20 €"}]
[null,"2017-02-25","Στέλλα","Ρούχα",{"v":125,"d":"125 €"}]
[null,"2017-01-21","Στέλλα","Μαθήματα μουσικής",{"v":250,"d":"250 €"}]
[null,"2017-02-20","Στέλλα","Στάθμευση",{"v":20,"d":"20 €"}]
[null,"2017-02-25","Στέλλα","Ηλεκτρονικά",{"v":125,"d":"125 €"}]
[null,"2017-01-01","Μητέρα","Καύσιμα",{"v":74,"d":"74 €"}]
[null,"2017-01-15","Μητέρα","Φαγητό",{"v":235,"d":"235 €"}]
[null,"2017-01-21","Μητέρα","Συνδρομές σε λέσχες",{"v":125,"d":"125 €"}]
[null,"2017-02-02","Μητέρα","Φαγητό",{"v":235,"d":"235 €"}]
[null,"2017-01-01","Μητέρα","Ιατρικά",{"v":74,"d":"74 €"}]
[null,"2017-01-15","Μητέρα","Ηλεκτρικό",{"v":70,"d":"70 €"}]
[null,"2017-02-02","Μητέρα","Οδοντιατρικά",{"v":235,"d":"235 €"}]
[null,"2017-01-01","Μητέρα","Ασφάλεια αυτοκινήτου",{"v":74,"d":"74 €"}]
[null,"2017-01-15","Μητέρα","Ασφάλεια υγείας",{"v":70,"d":"70 €"}]
[null,"2017-02-02","Μητέρα","Ασφάλεια κατοικίας",{"v":235,"d":"235 €"}]

{"sheet":"16","index":16,"n_rows":121,"n_cols":7,"rows_kept":121}
["Επίσης μπορείτε να συμπτύξετε ή να αναπτύξετε ολόκληρο το δεύτερο πεδίο γραμμών, για να απλοποιήσετε ακόμη περισσότερο τον Συγκεντρωτικό Πίνακα."]
["Αυτό είναι το κλειδί"]
["Επιλέξτε την περιοχή δεδομένων Συγκεντρωτικού Πίνακα από τα κελιά F7 έως G31 και, στη συνέχεια, πατήστε τον συνδυασμό πλήκτρων ALT+ΞΛ > ΣΜ για να συμπτύξετε ολόκληρη την ομάδα. Αντιστρόφως, ο συνδυασμός πλήκτρων ALT+ΞΛ > Ν θα αναπτύξει ολόκληρη την ομάδα."]
["Για να συνεχίσετε με αυτό το πρόγραμμα εκμάθησης, πατήστε τον συνδυασμό πλήκτρων CTRL+PAGE DOWN. Για να μεταβείτε στο προηγούμενο φύλλο, πατήστε τον συνδυασμό πλήκτρων CTRL+PAGE UP."]
[]
[{"$nulls":5},{"$f":"IF(AND($F$9=\"Στέλλα\",$G$9=935),\"Σωστά!\",\" \")","v":" "}]
[{"$nulls":5},"Ετικέτες γραμμής","Άθροισμα από Ποσό"]
[{"$nulls":5},"Πατέρας",{"v":2000,"d":"2,000 €"}]
[{"$nulls":5},"Αεροπορικά εισιτήρια",{"v":500,"d":"500 €"}]
[{"$nulls":5},"Αθλητισμός",{"v":1000,"d":"1,000 €"}]
[{"$nulls":5},"Φόροι",{"v":500,"d":"500 €"}]
[{"$nulls":5},"Στέλλα",{"v":935,"d":"935 €"}]
[{"$nulls":5},"Βιβλία",{"v":250,"d":"250 €"}]
[{"$nulls":5},"Εισιτήρια",{"v":125,"d":"125 €"}]
[{"$nulls":5},"Εστιατόρια",{"v":20,"d":"20 €"}]
[{"$nulls":5},"Ηλεκτρονικά",{"v":125,"d":"125 €"}]
[{"$nulls":5},"Μαθήματα μουσικής",{"v":250,"d":"250 €"}]
[{"$nulls":5},"Μουσική",{"v":20,"d":"20 €"}]
[{"$nulls":5},"Ρούχα",{"v":125,"d":"125 €"}]
[{"$nulls":5},"Στάθμευση",{"v":20,"d":"20 €"}]
[{"$nulls":5},"Μητέρα",{"v":1427,"d":"1,427 €"}]
[{"$nulls":5},"Ασφάλεια αυτοκινήτου",{"v":74,"d":"74 €"}]
[{"$nulls":5},"Ασφάλεια κατοικίας",{"v":235,"d":"235 €"}]
[{"$nulls":5},"Ασφάλεια υγείας",{"v":70,"d":"70 €"}]
[{"$nulls":5},"Ηλεκτρικό",{"v":70,"d":"70 €"}]
[{"$nulls":5},"Ιατρικά",{"v":74,"d":"74 €"}]
[{"$nulls":5},"Καύσιμα",{"v":74,"d":"74 €"}]
[{"$nulls":5},"Οδοντιατρικά",{"v":235,"d":"235 €"}]
[{"$nulls":5},"Συνδρομές σε λέσχες",{"v":125,"d":"125 €"}]
[{"$nulls":5},"Φαγητό",{"v":470,"d":"470 €"}]
[{"$nulls":5},"Γενικό Άθροισμα",{"v":4362,"d":"4,362 €"}]
{"$rows_empty":68}
[null,"Ημερομηνία","Αγοραστής","Τύπος","Ποσό"]
[null,"2017-01-17","Πατέρας","Αθλητισμός",{"v":1000,"d":"1,000 €"}]
[null,"2017-01-17","Πατέρας","Αεροπορικά εισιτήρια",{"v":500,"d":"500 €"}]
[null,"2017-01-17","Πατέρας","Φόροι",{"v":500,"d":"500 €"}]
[null,"2017-02-20","Στέλλα","Μουσική",{"v":20,"d":"20 €"}]
[null,"2017-02-25","Στέλλα","Εισιτήρια",{"v":125,"d":"125 €"}]
[null,"2017-01-21","Στέλλα","Βιβλία",{"v":250,"d":"250 €"}]
[null,"2017-02-20","Στέλλα","Εστιατόρια",{"v":20,"d":"20 €"}]
[null,"2017-02-25","Στέλλα","Ρούχα",{"v":125,"d":"125 €"}]
[null,"2017-01-21","Στέλλα","Μαθήματα μουσικής",{"v":250,"d":"250 €"}]
[null,"2017-02-20","Στέλλα","Στάθμευση",{"v":20,"d":"20 €"}]
[null,"2017-02-25","Στέλλα","Ηλεκτρονικά",{"v":125,"d":"125 €"}]
[null,"2017-01-01","Μητέρα","Καύσιμα",{"v":74,"d":"74 €"}]
[null,"2017-01-15","Μητέρα","Φαγητό",{"v":235,"d":"235 €"}]
[null,"2017-01-21","Μητέρα","Συνδρομές σε λέσχες",{"v":125,"d":"125 €"}]
[null,"2017-02-02","Μητέρα","Φαγητό",{"v":235,"d":"235 €"}]
[null,"2017-01-01","Μητέρα","Ιατρικά",{"v":74,"d":"74 €"}]
[null,"2017-01-15","Μητέρα","Ηλεκτρικό",{"v":70,"d":"70 €"}]
[null,"2017-02-02","Μητέρα","Οδοντιατρικά",{"v":235,"d":"235 €"}]
[null,"2017-01-01","Μητέρα","Ασφάλεια αυτοκινήτου",{"v":74,"d":"74 €"}]
[null,"2017-01-15","Μητέρα","Ασφάλεια υγείας",{"v":70,"d":"70 €"}]
[null,"2017-02-02","Μητέρα","Ασφάλεια κατοικίας",{"v":235,"d":"235 €"}]

{"sheet":"17","index":17,"n_rows":107,"n_cols":13,"rows_kept":107}
["Μπορείτε να έχετε και πάνω από ένα πεδία στηλών. Μπορούν να επίσης να συμπτυχθούν ή να αναπτυχθούν."]
["Ο Συγκεντρωτικός Πίνακας για αυτό το παράδειγμα εκτείνεται από τα κελιά B13 έως M19. Σε αυτή την περίπτωση, έχουμε μια κατηγορία τύπου στην ενότητα στηλών που περιλαμβάνει καταχωρήσεις για τα στοιχεία \"Φαγητό\" και \"Υπηρεσίες κοινής ωφελείας\"."]
["ΔΟΚΙΜΑΣΤΕ ΤΟ ΕΞΗΣ\nΕπιλέξτε το \"Φαγητό\" στο κελί C14 και μεταβείτε στον συνδυασμό πλήκτρων ALT+ΞΛ > ΣΜ για να συμπτύξετε ολόκληρο το πεδίο. Ο συνδυασμός ALT+ΞΛ > Ν θα το αναπτύξει."]
["Για να συνεχίσετε με αυτό το πρόγραμμα εκμάθησης, πατήστε τον συνδυασμό πλήκτρων CTRL+PAGE DOWN. Για να μεταβείτε στο προηγούμενο φύλλο, πατήστε τον συνδυασμό πλήκτρων CTRL+PAGE UP."]
{"$rows_empty":7}
[null,null,{"$f":"IF(AND($C$16=398,$D$15=\"Ιαν\"),\"Πολύ καλά!\",\" \")","v":" "}]
[null,"Άθροισμα από Ποσό","Ετικέτες στήλης"]
[null,null,"Φαγητό",{"$nulls":3},"Φαγητό Άθροισμα","Υπηρεσίες κοινής ωφελείας",{"$nulls":3},"Υπηρεσίες κοινής ωφελείας Άθροισμα","Γενικό Άθροισμα"]
[null,"Ετικέτες γραμμής","Ιαν","Φεβ","Μάρ","Απρ",null,"Ιαν","Φεβ","Μάρ","Απρ"]
[null,"Στέλλα",{"v":74,"d":"74 €"},{"v":74,"d":"74 €"},{"v":125,"d":"125 €"},{"v":125,"d":"125 €"},{"v":398,"d":"398 €"},{"$nulls":5},{"v":398,"d":"398 €"}]
[null,"Πατέρας",{"v":235,"d":"235 €"},{"v":235,"d":"235 €"},{"v":235,"d":"235 €"},{"v":74,"d":"74 €"},{"v":779,"d":"779 €"},{"$nulls":5},{"v":779,"d":"779 €"}]
[null,"Μητέρα",{"$nulls":5},{"v":1000,"d":"1,000 €"},{"v":1000,"d":"1,000 €"},{"v":20,"d":"20 €"},{"v":70,"d":"70 €"},{"v":2090,"d":"2,090 €"},{"v":2090,"d":"2,090 €"}]
[null,"Γενικό Άθροισμα",{"v":309,"d":"309 €"},{"v":309,"d":"309 €"},{"v":360,"d":"360 €"},{"v":199,"d":"199 €"},{"v":1177,"d":"1,177 €"},{"v":1000,"d":"1,000 €"},{"v":1000,"d":"1,000 €"},{"v":20,"d":"20 €"},{"v":70,"d":"70 €"},{"v":2090,"d":"2,090 €"},{"v":3267,"d":"3,267 €"}]
{"$rows_empty":75}
[null,"Μήνας","Αγοραστής","Τύπος","Ποσό"]
[null,"Ιαν","Στέλλα","Φαγητό",{"v":74,"d":"74 €"}]
[null,"Ιαν","Πατέρας","Φαγητό",{"v":235,"d":"235 €"}]
[null,"Ιαν","Μητέρα","Υπηρεσίες κοινής ωφελείας",{"v":1000,"d":"1,000 €"}]
[null,"Φεβ","Στέλλα","Φαγητό",{"v":74,"d":"74 €"}]
[null,"Φεβ","Πατέρας","Φαγητό",{"v":235,"d":"235 €"}]
[null,"Φεβ","Μητέρα","Υπηρεσίες κοινής ωφελείας",{"v":1000,"d":"1,000 €"}]
[null,"Μάρ","Στέλλα","Φαγητό",{"v":125,"d":"125 €"}]
[null,"Μάρ","Πατέρας","Φαγητό",{"v":235,"d":"235 €"}]
[null,"Μάρ","Μητέρα","Υπηρεσίες κοινής ωφελείας",{"v":20,"d":"20 €"}]
[null,"Απρ","Στέλλα","Φαγητό",{"v":125,"d":"125 €"}]
[null,"Απρ","Πατέρας","Φαγητό",{"v":74,"d":"74 €"}]
[null,"Απρ","Μητέρα","Υπηρεσίες κοινής ωφελείας",{"v":70,"d":"70 €"}]

{"sheet":"18","index":18,"n_rows":146,"n_cols":5,"rows_kept":146}
["Κάτι που πρέπει να έχετε υπόψη: Εάν χρειάζεστε περισσότερες λεπτομέρειες, μπορείτε να προσθέσετε πολλά περισσότερα πεδία γραμμών ή πεδία στηλών. Σε αυτό το παράδειγμα, υπάρχουν τρία πεδία γραμμών."]
["Ο Συγκεντρωτικός Πίνακας για αυτό το παράδειγμα εκτείνεται από το κελί D8 έως το E29 και έχει πεδία για τα στοιχεία \"Εποχή\", \"Αγοραστής\" και τύπος στη στήλη D, με το \"Άθροισμα από Ποσό\" στη στήλη E."]
["ΣΥΜΒΟΥΛΗ ΑΠΟ ΤΟΥΣ ΕΙΔΙΚΟΥΣ\nΕπειδή μπορείτε να προσθέσετε πολλά πεδία, δεν σημαίνει ότι πρέπει και να το κάνετε. Σε αυτό το παράδειγμα, δεν υπάρχει πρόβλημα. Ωστόσο, ορισμένες φορές, τα πάρα πολλά πεδία, μαζί με όλες τις εσοχές τους, μπορεί να κάνουν τον Συγκεντρωτικό Πίνακα πολύ περίπλοκο για να κατανοηθεί από άλλα άτομα "]
["Για να συνεχίσετε με αυτό το πρόγραμμα εκμάθησης, πατήστε τον συνδυασμό πλήκτρων CTRL+PAGE DOWN. Για να μεταβείτε στο προηγούμενο φύλλο, πατήστε τον συνδυασμό πλήκτρων CTRL+PAGE UP."]
[]
[]
[]
[{"$nulls":3},"Ετικέτες γραμμής","Άθροισμα από Ποσό"]
[{"$nulls":3},"Φθινόπωρο",{"v":5425,"d":"5,425 €"}]
[{"$nulls":3},"Μητέρα",{"v":5425,"d":"5,425 €"}]
[{"$nulls":3},"Ασφάλιση",{"v":1272,"d":"1,272 €"}]
[{"$nulls":3},"Ενοίκιο",{"v":3220,"d":"3,220 €"}]
[{"$nulls":3},"Υπηρεσίες κοινής ωφελείας",{"v":933,"d":"933 €"}]
[{"$nulls":3},"ΕΑΡΙΝΟ",{"v":4760,"d":"4,760 €"}]
[{"$nulls":3},"Πατέρας",{"v":4760,"d":"4,760 €"}]
[{"$nulls":3},"Ασφάλιση",{"v":1040,"d":"1,040 €"}]
[{"$nulls":3},"Ενοίκιο",{"v":2400,"d":"2,400 €"}]
[{"$nulls":3},"Υπηρεσίες κοινής ωφελείας",{"v":1320,"d":"1,320 €"}]
[{"$nulls":3},"Καλοκαίρι",{"v":3473,"d":"3,473 €"}]
[{"$nulls":3},"Μητέρα",{"v":3473,"d":"3,473 €"}]
[{"$nulls":3},"Ασφάλιση",{"v":1080,"d":"1,080 €"}]
[{"$nulls":3},"Ενοίκιο",{"v":1260,"d":"1,260 €"}]
[{"$nulls":3},"Υπηρεσίες κοινής ωφελείας",{"v":1133,"d":"1,133 €"}]
[{"$nulls":3},"Χειμώνας",{"v":4100,"d":"4,100 €"}]
[{"$nulls":3},"Πατέρας",{"v":4100,"d":"4,100 €"}]
[{"$nulls":3},"Ασφάλιση",{"v":1030,"d":"1,030 €"}]
[{"$nulls":3},"Ενοίκιο",{"v":1420,"d":"1,420 €"}]
[{"$nulls":3},"Υπηρεσίες κοινής ωφελείας",{"v":1650,"d":"1,650 €"}]
[{"$nulls":3},"Γενικό Άθροισμα",{"v":17758,"d":"17,758 €"}]
{"$rows_empty":68}
[null,"Αγοραστής","Εποχή","Τύπος","Ποσό"]
[null,"Πατέρας","Χειμώνας","Ασφάλιση",{"v":300,"d":"300 €"}]
[null,"Πατέρας","Χειμώνας","Ενοίκιο",{"v":200,"d":"200 €"}]
[null,"Πατέρας","Χειμώνας","Υπηρεσίες κοινής ωφελείας",{"v":400,"d":"400 €"}]
[null,"Πατέρας","Χειμώνας","Ασφάλιση",{"v":300,"d":"300 €"}]
[null,"Πατέρας","Χειμώνας","Ενοίκιο",{"v":800,"d":"800 €"}]
[null,"Πατέρας","Χειμώνας","Υπηρεσίες κοινής ωφελείας",{"v":400,"d":"400 €"}]
[null,"Πατέρας","Χειμώνας","Ασφάλιση",{"v":200,"d":"200 €"}]
[null,"Πατέρας","Χειμώνας","Ενοίκιο",{"v":300,"d":"300 €"}]
[null,"Πατέρας","Χειμώνας","Υπηρεσίες κοινής ωφελείας",{"v":450,"d":"450 €"}]
[null,"Πατέρας","Χειμώνας","Ασφάλιση",{"v":230,"d":"230 €"}]
[null,"Πατέρας","Χειμώνας","Ενοίκιο",{"v":120,"d":"120 €"}]
[null,"Πατέρας","Χειμώνας","Υπηρεσίες κοινής ωφελείας",{"v":400,"d":"400 €"}]
[null,"Πατέρας","ΕΑΡΙΝΟ","Ασφάλιση",{"v":210,"d":"210 €"}]
[null,"Πατέρας","ΕΑΡΙΝΟ","Ενοίκιο",{"v":300,"d":"300 €"}]
[null,"Πατέρας","ΕΑΡΙΝΟ","Υπηρεσίες κοινής ωφελείας",{"v":400,"d":"400 €"}]
[null,"Πατέρας","ΕΑΡΙΝΟ","Ασφάλιση",{"v":230,"d":"230 €"}]
[null,"Πατέρας","ΕΑΡΙΝΟ","Ενοίκιο",{"v":900,"d":"900 €"}]
[null,"Πατέρας","ΕΑΡΙΝΟ","Υπηρεσίες κοινής ωφελείας",{"v":300,"d":"300 €"}]
[null,"Πατέρας","ΕΑΡΙΝΟ","Ασφάλιση",{"v":200,"d":"200 €"}]
[null,"Πατέρας","ΕΑΡΙΝΟ","Ενοίκιο",{"v":1000,"d":"1,000 €"}]
[null,"Πατέρας","ΕΑΡΙΝΟ","Υπηρεσίες κοινής ωφελείας",{"v":220,"d":"220 €"}]
[null,"Πατέρας","ΕΑΡΙΝΟ","Ασφάλιση",{"v":400,"d":"400 €"}]
[null,"Πατέρας","ΕΑΡΙΝΟ","Ενοίκιο",{"v":200,"d":"200 €"}]
[null,"Πατέρας","ΕΑΡΙΝΟ","Υπηρεσίες κοινής ωφελείας",{"v":400,"d":"400 €"}]
[null,"Μητέρα","Καλοκαίρι","Ασφάλιση",{"v":100,"d":"100 €"}]
[null,"Μητέρα","Καλοκαίρι","Ενοίκιο",{"v":30,"d":"30 €"}]
[null,"Μητέρα","Καλοκαίρι","Υπηρεσίες κοινής ωφελείας",{"v":123,"d":"123 €"}]
[null,"Μητέρα","Καλοκαίρι","Ασφάλιση",{"v":300,"d":"300 €"}]
[null,"Μητέρα","Καλοκαίρι","Ενοίκιο",{"v":350,"d":"350 €"}]
[null,"Μητέρα","Καλοκαίρι","Υπηρεσίες κοινής ωφελείας",{"v":230,"d":"230 €"}]
[null,"Μητέρα","Καλοκαίρι","Ασφάλιση",{"v":120,"d":"120 €"}]
[null,"Μητέρα","Καλοκαίρι","Ενοίκιο",{"v":640,"d":"640 €"}]
[null,"Μητέρα","Καλοκαίρι","Υπηρεσίες κοινής ωφελείας",{"v":530,"d":"530 €"}]
[null,"Μητέρα","Καλοκαίρι","Ασφάλιση",{"v":560,"d":"560 €"}]
[null,"Μητέρα","Καλοκαίρι","Ενοίκιο",{"v":240,"d":"240 €"}]
[null,"Μητέρα","Καλοκαίρι","Υπηρεσίες κοινής ωφελείας",{"v":250,"d":"250 €"}]
[null,"Μητέρα","Φθινόπωρο","Ασφάλιση",{"v":62,"d":"62 €"}]
[null,"Μητέρα","Φθινόπωρο","Ενοίκιο",{"v":600,"d":"600 €"}]
[null,"Μητέρα","Φθινόπωρο","Υπηρεσίες κοινής ωφελείας",{"v":340,"d":"340 €"}]
[null,"Μητέρα","Φθινόπωρο","Ασφάλιση",{"v":205,"d":"205 €"}]
[null,"Μητέρα","Φθινόπωρο","Ενοίκιο",{"v":500,"d":"500 €"}]
[null,"Μητέρα","Φθινόπωρο","Υπηρεσίες κοινής ωφελείας",{"v":403,"d":"403 €"}]
[null,"Μητέρα","Φθινόπωρο","Ασφάλιση",{"v":503,"d":"503 €"}]
[null,"Μητέρα","Φθινόπωρο","Ενοίκιο",{"v":2000,"d":"2,000 €"}]
[null,"Μητέρα","Φθινόπωρο","Υπηρεσίες κοινής ωφελείας",{"v":140,"d":"140 €"}]
[null,"Μητέρα","Φθινόπωρο","Ασφάλιση",{"v":502,"d":"502 €"}]
[null,"Μητέρα","Φθινόπωρο","Ενοίκιο",{"v":120,"d":"120 €"}]
[null,"Μητέρα","Φθινόπωρο","Υπηρεσίες κοινής ωφελείας",{"v":50,"d":"50 €"}]

{"sheet":"19","index":19,"n_rows":55,"n_cols":5,"rows_kept":55}
["Έτοιμοι για περισσότερη εξάσκηση; Εξετάστε τα δεδομένα στα παρακάτω κελιά B7 έως E55. Όταν είστε έτοιμοι, μεταβείτε στο επόμενο φύλλο για να εξασκηθείτε σε ό,τι μάθατε μέχρι στιγμής. "]
["Δεν χρειάζεται να εξετάσετε όλες τις γραμμές δεδομένων. Απλά εξετάστε τα ονόματα πεδίου στη γραμμή 7. Με αυτά θα εργαστείτε στο επόμενο φύλλο. "]
["Για να συνεχίσετε με αυτό το πρόγραμμα εκμάθησης, πατήστε τον συνδυασμό πλήκτρων CTRL+PAGE DOWN. Για να μεταβείτε στο προηγούμενο φύλλο, πατήστε τον συνδυασμό πλήκτρων CTRL+PAGE UP."]
[]
[]
[]
[null,"Εποχή","Πωλητής","Προϊόν","Μονάδες πώλησης"]
[null,"Χειμώνας","Σοφία","Πορτοκάλια",300]
[null,"Χειμώνας","Γιώργος","Γκρέιπφρουτ",200]
[null,"Χειμώνας","Φαίδων","Μήλα",400]
[null,"Χειμώνας","Σοφία","Μπανάνες",300]
[null,"Χειμώνας","Γιώργος","Πορτοκάλια",800]
[null,"Χειμώνας","Φαίδων","Γκρέιπφρουτ",400]
[null,"Χειμώνας","Σοφία","Μήλα",200]
[null,"Χειμώνας","Γιώργος","Μπανάνες",300]
[null,"Χειμώνας","Φαίδων","Πορτοκάλια",450]
[null,"Χειμώνας","Σοφία","Γκρέιπφρουτ",230]
[null,"Χειμώνας","Γιώργος","Μήλα",120]
[null,"Χειμώνας","Φαίδων","Μπανάνες",400]
[null,"ΕΑΡΙΝΟ","Σοφία","Παντζάρια",210]
[null,"ΕΑΡΙΝΟ","Γιώργος","Πατάτες",300]
[null,"ΕΑΡΙΝΟ","Φαίδων","Μαρούλια",400]
[null,"ΕΑΡΙΝΟ","Σοφία","Ραπανάκια",230]
[null,"ΕΑΡΙΝΟ","Γιώργος","Παντζάρια",900]
[null,"ΕΑΡΙΝΟ","Φαίδων","Πατάτες",300]
[null,"ΕΑΡΙΝΟ","Σοφία","Μαρούλια",200]
[null,"ΕΑΡΙΝΟ","Γιώργος","Ραπανάκια",{"v":1000,"d":"1,000"}]
[null,"ΕΑΡΙΝΟ","Φαίδων","Παντζάρια",220]
[null,"ΕΑΡΙΝΟ","Σοφία","Πατάτες",400]
[null,"ΕΑΡΙΝΟ","Γιώργος","Μαρούλια",200]
[null,"ΕΑΡΙΝΟ","Φαίδων","Ραπανάκια",400]
[null,"Καλοκαίρι","Σοφία","Μύρτιλα",100]
[null,"Καλοκαίρι","Γιώργος","Φράουλες",30]
[null,"Καλοκαίρι","Φαίδων","Σταφύλια",123]
[null,"Καλοκαίρι","Σοφία","Πορτοκαλί κολοκύθες",300]
[null,"Καλοκαίρι","Γιώργος","Μύρτιλα",350]
[null,"Καλοκαίρι","Φαίδων","Φράουλες",230]
[null,"Καλοκαίρι","Σοφία","Σταφύλια",120]
[null,"Καλοκαίρι","Γιώργος","Πορτοκαλί κολοκύθες",640]
[null,"Καλοκαίρι","Φαίδων","Μύρτιλα",530]
[null,"Καλοκαίρι","Σοφία","Φράουλες",560]
[null,"Καλοκαίρι","Γιώργος","Σταφύλια",240]
[null,"Καλοκαίρι","Φαίδων","Πορτοκαλί κολοκύθες",250]
[null,"Φθινόπωρο","Σοφία","Κολοκύθια",62]
[null,"Φθινόπωρο","Γιώργος","Πράσινα κολοκυθάκια",600]
[null,"Φθινόπωρο","Φαίδων","Μήλα",340]
[null,"Φθινόπωρο","Σοφία","Πορτοκάλια",205]
[null,"Φθινόπωρο","Γιώργος","Κολοκύθια",500]
[null,"Φθινόπωρο","Φαίδων","Πράσινα κολοκυθάκια",403]
[null,"Φθινόπωρο","Σοφία","Μήλα",503]
[null,"Φθινόπωρο","Γιώργος","Πορτοκάλια",{"v":2000,"d":"2,000"}]
[null,"Φθινόπωρο","Φαίδων","Κολοκύθια",140]
[null,"Φθινόπωρο","Σοφία","Πράσινα κολοκυθάκια",502]
[null,"Φθινόπωρο","Γιώργος","Μήλα",120]
[null,"Φθινόπωρο","Φαίδων","Πορτοκάλια",50]

{"sheet":"20","index":20,"n_rows":17,"n_cols":11,"rows_kept":17}
["1. Η περιοχή Συγκεντρωτικού Πίνακα σε αυτό το παράδειγμα είναι από B12 έως C17. Μεταβείτε σε οποιοδήποτε από αυτά τα κελιά. \n\n"]
["2. Πατήστε τον συνδυασμό πλήκτρων ALT+ΞΛ, Μ2 για να ανοίξετε τη λίστα \"Πεδία Συγκεντρωτικού Πίνακα\". Η εστίαση θα είναι από προεπιλογή στο πλαίσιο κειμένου \"Αναζήτηση\": Αλλάξτε το κείμενο \"Πληκτρολογήστε λέξεις για αναζήτηση\". Μην πληκτρολογήσετε κάτι, απλώς πατήστε μία φορά το πλήκτρο Tab. ΣΗΜΕΊΩΣΗ: Εάν η λίστα πεδίων δεν ανοίγει, πατήστε ξανά τον συνδυασμό πλήκτρων ALT+ΞΛ, Μ2."]
["3. Πατήστε τα πλήκτρα βέλους για να μετακινηθείτε στο πεδίο \"Πωλητής\". Πατήστε το πλήκτρο ΔΙΑΣΤΉΜΑΤΟΣ για να προσθέσετε το πεδίο \"Πωλητής\" στην περιοχή γραμμών. Εάν θέλετε να εμφανίσετε τις λεπτομέρειες για το στοιχείο \"Πωλητής\" στην περιοχή στηλών, χρησιμοποιήστε τα πλήκτρα Tab για να μετακινηθείτε στο πεδίο \"Πωλητής\" στην περιοχή γραμμών, στη συνέχεια, πατήστε το πλήκτρο ΔΙΑΣΤΗΜΑΤΟΣ και επιλέξτε \"Μετακίνηση στις ετικέτες στηλών\". Πατήστε το πλήκτρο ESC για να κλείσετε το παράθυρο \"Πεδία Συγκεντρωτικού Πίνακα\". "]
["4. Καθορίστε ποιος έκανε τις περισσότερες πωλήσεις το φθινόπωρο και, στη συνέχεια, κάντε μια επιλογή στο κελί K8. "]
["Για να συνεχίσετε με αυτό το πρόγραμμα εκμάθησης, πατήστε τον συνδυασμό πλήκτρων CTRL+PAGE DOWN. Για να μεταβείτε στο προηγούμενο φύλλο, πατήστε τον συνδυασμό πλήκτρων CTRL+PAGE UP."]
[]
[{"$nulls":10},"Επιλέξτε ένα:"]
[]
[{"$nulls":10},{"$f":"IF($K$8=\"Γιώργος\",\"Έτσι μπράβο!\",IF($K$8=\"Φαίδων\",\"Δοκιμάστε ξανά...\",IF($K$8=\"Σοφία\",\"Όχι ακριβώς...\",IF($K$8=\" \",\" \",\" \"))))","v":" "}]
[]
[]
[null,"Ετικέτες γραμμής","Άθροισμα από Μονάδες πώλησης"]
[null,"Φθινόπωρο",{"v":5425,"d":"5,425"}]
[null,"Καλοκαίρι",{"v":3473,"d":"3,473"}]
[null,"Χειμώνας",{"v":4100,"d":"4,100"}]
[null,"ΕΑΡΙΝΟ",{"v":4760,"d":"4,760"}]
[null,"Γενικό Άθροισμα",{"v":17758,"d":"17,758"}]

{"sheet":"21","index":21,"n_rows":14,"n_cols":10,"rows_kept":14}
["1. Κάντε κλικ στο κελί B13, για να ενεργοποιήσετε τον Συγκεντρωτικό Πίνακα με το όνομα \"Άθροισμα από Μονάδες πώλησης\". \n\n"]
["2. Πατήστε τον συνδυασμό πλήκτρων ALT+ΞΛ, Μ2 για να ανοίξετε τη λίστα \"Πεδία Συγκεντρωτικού Πίνακα\". Η εστίαση θα είναι από προεπιλογή στο πλαίσιο κειμένου \"Αναζήτηση\": Αλλάξτε το κείμενο \"Πληκτρολογήστε λέξεις για αναζήτηση\". Μην πληκτρολογήσετε κάτι, απλώς πατήστε μία φορά το πλήκτρο Tab. ΣΗΜΕΊΩΣΗ: Εάν η λίστα πεδίων δεν ανοίγει, πατήστε ξανά τον συνδυασμό πλήκτρων ALT+ΞΛ, Μ2."]
["3. Χρησιμοποιήστε τα πλήκτρα βέλους και το πλήκτρο ΔΙΑΣΤΉΜΑΤΟΣ για να αναπτύξετε το παράδειγμα σε έναν κατακόρυφο Συγκεντρωτικό Πίνακα που έχει τις εποχές στην αριστερή πλευρά και τους πωλητές σε εσοχή κάτω από τις εποχές. Πατήστε το πλήκτρο ESC για έξοδο από το τμήμα παραθύρου \"Πεδία Συγκεντρωτικού Πίνακα\". "]
["Για να συνεχίσετε με αυτό το πρόγραμμα εκμάθησης, πατήστε τον συνδυασμό πλήκτρων CTRL+PAGE DOWN. Για να μεταβείτε στο προηγούμενο φύλλο, πατήστε τον συνδυασμό πλήκτρων CTRL+PAGE UP."]
[{"$nulls":9},{"$f":"IF(AND(B$14=\"Άνοιξη\",$C$17=4150),\"Πολύ ωραία! Τοποθετήσατε ένα δευτερεύον\",\" \")","v":" "}]
[{"$nulls":9},{"$f":"IF(AND(B$14=\"Άνοιξη\",$C$17=4150),\"πεδίο γραμμών. Τώρα, κάντε κύλιση προς τα\",\" \")","v":" "}]
[{"$nulls":9},{"$f":"IF(AND(B$14=\"Άνοιξη\",$C$17=4150),\"κάτω και κάντε κλικ στην επιλογή 'Επόμενο'.\",\" \")","v":" "}]
[]
[]
[]
[]
[]
[null,"Άθροισμα από Μονάδες πώλησης"]
[null,{"v":17758,"d":"17,758"}]

{"sheet":"22","index":22,"n_rows":14,"n_cols":10,"rows_kept":14}
["1. Κάντε κλικ στο κελί B13, για να ενεργοποιήσετε τον Συγκεντρωτικό Πίνακα με το όνομα \"Άθροισμα από Μονάδες πώλησης\". "]
["2. Πατήστε τον συνδυασμό πλήκτρων ALT+ΞΛ, Μ2 για να ανοίξετε τη λίστα \"Πεδία Συγκεντρωτικού Πίνακα\". Η εστίαση θα είναι από προεπιλογή στο πλαίσιο κειμένου \"Αναζήτηση\": Αλλάξτε το κείμενο \"Πληκτρολογήστε λέξεις για αναζήτηση\". Μην πληκτρολογήσετε κάτι, απλώς πατήστε μία φορά το πλήκτρο Tab. ΣΗΜΕΊΩΣΗ: Εάν η λίστα πεδίων δεν ανοίγει, πατήστε ξανά τον συνδυασμό πλήκτρων ALT+ΞΛ, Μ2."]
["3. Χρησιμοποιήστε τα πλήκτρα βέλους και ΔΙΑΣΤΗΜΑΤΟΣ για να τροποποιήσετε το παράδειγμα ώστε να εμφανίζει κάθε προϊόν στη δική του γραμμή και κάθε εποχή στη δική της στήλη."]
["Για να συνεχίσετε με αυτό το πρόγραμμα εκμάθησης, πατήστε τον συνδυασμό πλήκτρων CTRL+PAGE DOWN. Για να μεταβείτε στο προηγούμενο φύλλο, πατήστε τον συνδυασμό πλήκτρων CTRL+PAGE UP.",{"$nulls":8},{"$f":"IF(AND($B$15=\"Γκρέιπφρουτ\",$G$28=820),\"Πολύ ωραία! Έχετε τοποθετήσει ένα\",\" \")","v":" "}]
[{"$nulls":9},{"$f":"IF(AND($B$15=\"Γκρέιπφρουτ\",$G$28=820),\"πεδίο γραμμών στα αριστερά και ένα\",\" \")","v":" "}]
[{"$nulls":9},{"$f":"IF(AND($B$15=\"Γκρέιπφρουτ\",$G$28=820),\"πεδίο στηλών με τέσσερις νέες στήλες.\",\" \")","v":" "}]
[{"$nulls":9},{"$f":"IF(AND($B$15=\"Γκρέιπφρουτ\",$G$28=820),\"Κάντε κύλιση προς τα κάτω και κάντε\",\" \")","v":" "}]
[{"$nulls":9},{"$f":"IF(AND($B$15=\"Γκρέιπφρουτ\",$G$28=820),\"κλικ στην επιλογή 'Επόμενο'...\",\" \")","v":" "}]
[]
[]
[]
[]
[null,"Άθροισμα από Μονάδες πώλησης"]
[null,{"v":17758,"d":"17,758"}]

{"sheet":"23","index":23,"n_rows":16,"n_cols":18,"rows_kept":16}
["1. Κάντε κλικ στο κελί B13, για να ενεργοποιήσετε τον Συγκεντρωτικό Πίνακα με το όνομα \"Άθροισμα από Μονάδες πώλησης\". \n\n"]
["2. Πατήστε τον συνδυασμό πλήκτρων ALT+ΞΛ, Μ2 για να ανοίξετε τη λίστα \"Πεδία Συγκεντρωτικού Πίνακα\". Η εστίαση θα είναι από προεπιλογή στο πλαίσιο κειμένου \"Αναζήτηση\": Αλλάξτε το κείμενο \"Πληκτρολογήστε λέξεις για αναζήτηση\". Μην πληκτρολογήσετε κάτι, απλώς πατήστε μία φορά το πλήκτρο Tab. ΣΗΜΕΊΩΣΗ: Εάν η λίστα πεδίων δεν ανοίγει, πατήστε ξανά τον συνδυασμό πλήκτρων ALT+ΞΛ, Μ2."]
["3. Χρησιμοποιήστε τα πλήκτρα Tab, βέλους και ΔΙΑΣΤΉΜΑΤΟΣ για να τροποποιήσετε το παράδειγμα, έτσι ώστε να εμφανίζεται το στοιχείο \"Πωλητές\" στα αριστερά και το στοιχείο \"Εποχές\" να εμφανίζεται από κάτω του με εσοχή."]
["Για να συνεχίσετε με αυτό το πρόγραμμα εκμάθησης, πατήστε τον συνδυασμό πλήκτρων CTRL+PAGE DOWN. Για να μεταβείτε στο προηγούμενο φύλλο, πατήστε τον συνδυασμό πλήκτρων CTRL+PAGE UP."]
[{"$nulls":9},{"$f":"IF(AND($B$14=\"Φαίδων\",$C$14=5036),\"Πολύ ωραία! Τώρα, τα δεδομένα είναι πιο\",\" \")","v":" "}]
[{"$nulls":9},{"$f":"IF(AND($B$14=\"Φαίδων\",$C$14=5036),\"ευανάγνωστα. Κάντε κύλιση προς τα κάτω\",\" \")","v":" "}]
[{"$nulls":9},{"$f":"IF(AND($B$14=\"Φαίδων\",$C$14=5036),\"και κάντε κλικ στην επιλογή 'Επόμενο'...\",\" \")","v":" "}]
[]
[]
[]
[]
[]
[null,null,"Ετικέτες στήλης"]
[null,null,"Φαίδων",{"$nulls":3},"Φαίδων Άθροισμα","Γιώργος",{"$nulls":3},"Γιώργος Άθροισμα","Σοφία",{"$nulls":3},"Σοφία Άθροισμα","Γενικό Άθροισμα"]
[null,null,"Φθινόπωρο","Καλοκαίρι","Χειμώνας","ΕΑΡΙΝΟ",null,"Φθινόπωρο","Καλοκαίρι","Χειμώνας","ΕΑΡΙΝΟ",null,"Φθινόπωρο","Καλοκαίρι","Χειμώνας","ΕΑΡΙΝΟ"]
[null,"Άθροισμα από Μονάδες πώλησης",933,{"v":1133,"d":"1,133"},{"v":1650,"d":"1,650"},{"v":1320,"d":"1,320"},{"v":5036,"d":"5,036"},{"v":3220,"d":"3,220"},{"v":1260,"d":"1,260"},{"v":1420,"d":"1,420"},{"v":2400,"d":"2,400"},{"v":8300,"d":"8,300"},{"v":1272,"d":"1,272"},{"v":1080,"d":"1,080"},{"v":1030,"d":"1,030"},{"v":1040,"d":"1,040"},{"v":4422,"d":"4,422"},{"v":17758,"d":"17,758"}]

{"sheet":"24","index":24,"n_rows":14,"n_cols":9,"rows_kept":14}
["1. Κάντε κλικ στο κελί B13, για να ενεργοποιήσετε τον Συγκεντρωτικό Πίνακα με το όνομα \"Άθροισμα από Μονάδες πώλησης\". "]
["2. Πατήστε τον συνδυασμό πλήκτρων ALT+ΞΛ, Μ2 για να ανοίξετε τη λίστα \"Πεδία Συγκεντρωτικού Πίνακα\". Η εστίαση θα είναι από προεπιλογή στο πλαίσιο κειμένου \"Αναζήτηση\": Αλλάξτε το κείμενο \"Πληκτρολογήστε λέξεις για αναζήτηση\". Μην πληκτρολογήσετε κάτι, απλώς πατήστε μία φορά το πλήκτρο Tab. ΣΗΜΕΊΩΣΗ: Εάν η λίστα πεδίων δεν ανοίγει, πατήστε ξανά τον συνδυασμό πλήκτρων ALT+ΞΛ, Μ2."]
["3. Χρησιμοποιήστε τα πλήκτρα Tab, βέλους και ΔΙΑΣΤΉΜΑΤΟΣ για να τροποποιήσετε το παράδειγμα, έτσι ώστε κάθε στοιχείο \"Πωλητές\" να έχει τα δικά του πεδία στηλών με το στοιχείο \"Εποχές\" στα αριστερά, και το στοιχείο \"Προϊόντα\" να εμφανίζεται από κάτω τους, με εσοχή."]
["4. Επιλέξτε το κελί I9 και διαλέξτε πόσα γκρέιπφρουτ πούλησε ο Φαίδων τον χειμώνα."]
["Για να συνεχίσετε με αυτό το πρόγραμμα εκμάθησης, πατήστε τον συνδυασμό πλήκτρων CTRL+PAGE DOWN. Για να μεταβείτε στο προηγούμενο φύλλο, πατήστε τον συνδυασμό πλήκτρων CTRL+PAGE UP."]
[]
[]
[{"$nulls":8},"Επιλέξτε ένα:"]
[]
[{"$nulls":8},{"$f":"IF($I$9=400,\"Έτσι μπράβο!\",IF($I$9=530,\"Δοκιμάστε ξανά...\",IF($I$9=123,\"Όχι ακριβώς...\",\" \")))","v":" "}]
[]
[]
[null,"Άθροισμα από Μονάδες πώλησης"]
[null,{"v":17758,"d":"17,758"}]

{"sheet":"Μάθετε περισσότερα","index":25,"n_rows":8,"n_cols":1,"rows_kept":8}
["Πολύ ωραία. Δεν είναι υπέροχοι οι Συγκεντρωτικοί Πίνακες;"]
["Αλλά σας συνιστούμε να συνεχίσετε! Υπάρχουν πολλά ακόμη να ανακαλύψετε..."]
["Περισσότερες πληροφορίες για τους Συγκεντρωτικούς Πίνακες\nΑνακαλύψτε περισσότερα που μπορείτε να κάνετε σε αυτό το χρήσιμο άρθρο για τους Συγκεντρωτικούς Πίνακες."]
["Σχετικά με την ανανέωση\nΔιαβάστε αυτό το σημαντικό άρθρο σχετικά με τον τρόπο ανανέωσης των Συγκεντρωτικών Πινάκων. "]
["Κοινότητα\nΣυνδεθείτε με άλλους λάτρεις του Excel. Μπορούν να σας βοηθήσουν και να τους βοηθήσετε."]
[]
[]
[" "]